[Event "Late-Titled-Tuesday-Blitz-February-20-2024"]
[Site "Chess.com"]
[Date "2024.02.20"]
[Round "6"]
[White "tgpgoat"]
[Black "ridnani1"]
[Result "1/2-1/2"]
[WhiteElo "2543"]
[BlackElo "2390"]
[TimeControl "180+1"]
[EndTime "15:07:51 PST"]
[Termination "Game drawn by agreement"]

1. Nf3 {[%clk 0:02:36]} 1... Nf6 {[%clk 0:02:58.8]} 2. g3 {[%clk 0:02:36]} 2...
g6 {[%clk 0:02:58.6]} 3. Bg2 {[%clk 0:02:36.5]} 3... Bg7 {[%clk 0:02:59.3]} 4.
O-O {[%clk 0:02:37]} 4... O-O {[%clk 0:02:59.4]} 5. c4 {[%clk 0:02:37.9]} 5...
d6 {[%clk 0:02:59.2]} 6. Nc3 {[%clk 0:02:32.9]} 6... Nbd7 {[%clk 0:02:57.6]} 7.
d3 {[%clk 0:02:31.4]} 7... e5 {[%clk 0:02:56.4]} 8. Rb1 {[%clk 0:02:30.7]} 8...
a5 {[%clk 0:02:55.5]} 9. a3 {[%clk 0:02:29.9]} 9... Re8 {[%clk 0:02:50.5]} 10.
b4 {[%clk 0:02:25.8]} 10... axb4 {[%clk 0:02:51.4]} 11. axb4 {[%clk 0:02:24.6]}
11... Qe7 {[%clk 0:02:47.8]} 12. Bg5 {[%clk 0:02:23.9]} 12... c6 {[%clk
0:02:44.4]} 13. b5 {[%clk 0:02:23.2]} 13... h6 {[%clk 0:02:43.4]} 14. bxc6
{[%clk 0:02:21.4]} 14... bxc6 {[%clk 0:02:41.5]} 15. Bxf6 {[%clk 0:02:19.9]}
15... Nxf6 {[%clk 0:02:42.4]} 16. Nd2 {[%clk 0:02:20.1]} 16... Bb7 {[%clk
0:02:34.1]} 17. Na4 {[%clk 0:02:14.5]} 17... Reb8 {[%clk 0:02:14.6]} 18. Nb6
{[%clk 0:02:10.5]} 18... Ra6 {[%clk 0:01:55.2]} 19. Ne4 {[%clk 0:01:55.1]} 19...
Nxe4 {[%clk 0:01:41.8]} 20. Bxe4 {[%clk 0:01:54.3]} 20... Qc7 {[%clk 0:01:42.1]}
21. Qb3 {[%clk 0:01:53.7]} 21... Bc8 {[%clk 0:00:51.7]} 22. Nd5 {[%clk 0:01:47]}
22... Rxb3 {[%clk 0:00:51.3]} 23. Nxc7 {[%clk 0:01:47.4]} 23... Rxb1 {[%clk
0:00:51.4]} 24. Rxb1 {[%clk 0:01:46.9]} 24... Ra7 {[%clk 0:00:51.9]} 25. Ne8
{[%clk 0:01:45.2]} 25... Bf8 {[%clk 0:00:46.4]} 26. Rb8 {[%clk 0:01:40.7]} 26...
Bh3 {[%clk 0:00:41.2]} 27. f3 {[%clk 0:01:34.8]} 27... c5 {[%clk 0:00:33.8]} 28.
Nxd6 {[%clk 0:01:24.7]} 28... Ra6 {[%clk 0:00:26.3]} 29. Nb5 {[%clk 0:01:21.5]}
29... h5 {[%clk 0:00:23.9]} 30. Ra8 {[%clk 0:01:19.7]} 30... Rb6 {[%clk
0:00:19.4]} 31. Bd5 {[%clk 0:01:18.2]} 31... Kg7 {[%clk 0:00:19]} 32. Ra7 {[%clk
0:01:17.9]} 32... Be6 {[%clk 0:00:18.6]} 33. Bxe6 {[%clk 0:01:15.3]} 33... Rxe6
{[%clk 0:00:19.5]} 34. Kf2 {[%clk 0:01:15.8]} 34... h4 {[%clk 0:00:17.3]} 35.
Rb7 {[%clk 0:01:11.2]} 35... hxg3+ {[%clk 0:00:17]} 36. hxg3 {[%clk 0:01:08.8]}
36... Ra6 {[%clk 0:00:17.9]} 37. Ra7 {[%clk 0:01:08.4]} 37... Rf6 {[%clk
0:00:17.3]} 38. Ke3 {[%clk 0:01:08.1]} 38... g5 {[%clk 0:00:17.3]} 39. Nc7
{[%clk 0:01:07.1]} 39... Kg6 {[%clk 0:00:16.8]} 40. Nd5 {[%clk 0:01:07.3]} 40...
Rd6 {[%clk 0:00:15.8]} 41. Ne7+ {[%clk 0:01:06.5]} 41... Kf6 {[%clk 0:00:15.7]}
42. Nd5+ {[%clk 0:01:07.1]} 42... Kg6 {[%clk 0:00:15.9]} 43. f4 {[%clk
0:01:07.4]} 43... gxf4+ {[%clk 0:00:15.8]} 44. gxf4 {[%clk 0:01:08]} 44... Bh6
{[%clk 0:00:16]} 45. Ke4 {[%clk 0:01:03.6]} 45... f5+ {[%clk 0:00:15.3]} 46. Kf3
{[%clk 0:01:02.2]} 46... exf4 {[%clk 0:00:15.1]} 47. Nxf4+ {[%clk 0:01:02.1]}
47... Bxf4 {[%clk 0:00:15.5]} 48. Kxf4 {[%clk 0:01:03]} 48... Re6 {[%clk
0:00:16.2]} 49. e3 {[%clk 0:01:02.8]} 49... Rd6 {[%clk 0:00:15.4]} 50. Ra3
{[%clk 0:01:01]} 50... Kf6 {[%clk 0:00:15.1]} 51. Ra5 {[%clk 0:00:58.8]} 51...
Rxd3 {[%clk 0:00:15]} 52. Rxc5 {[%clk 0:00:58.7]} 52... Rc3 {[%clk 0:00:14.1]}
53. Rxf5+ {[%clk 0:00:58.4]} 53... Ke6 {[%clk 0:00:14.2]} 54. Rc5 {[%clk
0:00:58.6]} 54... Kd6 {[%clk 0:00:14.1]} 55. Rd5+ {[%clk 0:00:57.7]} 55... Ke6
{[%clk 0:00:14]} 56. Rd4 {[%clk 0:00:58.6]} 56... Rc1 {[%clk 0:00:13.5]} 57. Ke4
{[%clk 0:00:58.9]} 57... Rh1 {[%clk 0:00:13.1]} 58. Kd3 {[%clk 0:00:58.6]} 58...
Rd1+ {[%clk 0:00:12.8]} 59. Kc3 {[%clk 0:00:58.9]} 59... Re1 {[%clk 0:00:12.8]}
60. Rd3 {[%clk 0:00:56.4]} 60... Rc1+ {[%clk 0:00:11.2]} 61. Kd4 {[%clk
0:00:56.8]} 61... Kd6 {[%clk 0:00:11.2]} 62. e4 {[%clk 0:00:56.5]} 62... Rh1
{[%clk 0:00:10.7]} 63. c5+ {[%clk 0:00:55.4]} 63... Kc6 {[%clk 0:00:11]} 64. Re3
{[%clk 0:00:42.8]} 64... Rd1+ {[%clk 0:00:11.1]} 65. Kc3 {[%clk 0:00:42.9]}
65... Rc1+ {[%clk 0:00:11.4]} 66. Kd4 {[%clk 0:00:42.8]} 66... Rxc5 {[%clk
0:00:11.1]} 67. e5 {[%clk 0:00:42.8]} 67... Rd5+ {[%clk 0:00:10.6]} 68. Ke4
{[%clk 0:00:43.1]} 68... Rd1 {[%clk 0:00:10.2]} 69. Kf5 {[%clk 0:00:42.9]} 69...
Kd7 {[%clk 0:00:10.3]} 70. Rf3 {[%clk 0:00:39.7]} 70... Ke7 {[%clk 0:00:09.9]}
71. Rf4 {[%clk 0:00:39.2]} 71... Rh1 {[%clk 0:00:09.6]} 72. Ke4 {[%clk
0:00:39.1]} 72... Re1+ {[%clk 0:00:09.6]} 73. Kd4 {[%clk 0:00:39]} 73... Rd1+
{[%clk 0:00:10.2]} 74. Kc5 {[%clk 0:00:35.9]} 74... Ke6 {[%clk 0:00:09.9]} 75.
Kc4 {[%clk 0:00:31.9]} 75... Kxe5 {[%clk 0:00:09.4]} 76. Rf8 {[%clk 0:00:32.6]}
76... Rc1+ {[%clk 0:00:08.6]} 77. Kd3 {[%clk 0:00:32.7]} 77... Rd1+ {[%clk
0:00:09.1]} 78. Ke3 {[%clk 0:00:32]} 78... Rd6 {[%clk 0:00:10]} 79. Re8+ {[%clk
0:00:32.3]} 79... Re6 {[%clk 0:00:10.7]} 80. Ra8 {[%clk 0:00:33.2]} 80... Kf5+
{[%clk 0:00:10.9]} 81. Kf3 {[%clk 0:00:33.6]} 81... Rf6 {[%clk 0:00:11.8]} 82.
Ra4 {[%clk 0:00:32.8]} 82... Kg6+ {[%clk 0:00:12.7]} 83. Kg4 {[%clk 0:00:32.4]}
83... Re6 {[%clk 0:00:12.9]} 84. Ra5 {[%clk 0:00:32.5]} 84... Rf6 {[%clk
0:00:13.8]} 85. Rg5+ {[%clk 0:00:32.1]} 85... Kf7 {[%clk 0:00:14.5]} 86. Rb5
{[%clk 0:00:33]} 86... Rg6+ {[%clk 0:00:14.9]} 87. Kf5 {[%clk 0:00:32.7]} 87...
Rf6+ {[%clk 0:00:15.8]} 88. Ke5 {[%clk 0:00:33.2]} 88... Re6+ {[%clk 0:00:16.5]}
89. Kd5 {[%clk 0:00:33.2]} 89... Rf6 {[%clk 0:00:17.4]} 90. Rb7+ {[%clk
0:00:33.1]} 90... Kg6 {[%clk 0:00:18.3]} 91. Ke5 {[%clk 0:00:33.5]} 91... Rf5+
{[%clk 0:00:18.8]} 92. Ke4 {[%clk 0:00:34.1]} 92... Rf6 {[%clk 0:00:19.7]} 93.
Rb8 {[%clk 0:00:34.4]} 93... Re6+ {[%clk 0:00:20.1]} 94. Kf4 {[%clk 0:00:34.2]}
94... Rf6+ {[%clk 0:00:21]} 95. Kg4 {[%clk 0:00:34.6]} 95... Ra6 {[%clk
0:00:21.9]} 96. Rg8+ {[%clk 0:00:34.4]} 96... Kf7 {[%clk 0:00:22.1]} 97. Rb8
{[%clk 0:00:35.3]} 97... Ra5 {[%clk 0:00:22.5]} 98. Rb7+ {[%clk 0:00:35.4]}
98... Kf6 {[%clk 0:00:22.6]} 99. Rb6+ {[%clk 0:00:35.4]} 1/2-1/2

[Event "Late-Titled-Tuesday-Blitz-February-20-2024"]
[Site "Chess.com"]
[Date "2024.02.20"]
[Round "6"]
[White "IMRosen"]
[Black "HalfIsCrayfish"]
[Result "0-1"]
[WhiteElo "2680"]
[BlackElo "2545"]
[TimeControl "180+1"]
[EndTime "15:08:01 PST"]
[Termination "HalfIsCrayfish won by checkmate"]

1. d4 {[%clk 0:03:00.9]} 1... Nf6 {[%clk 0:02:59.9]} 2. Bf4 {[%clk 0:03:01.5]}
2... b6 {[%clk 0:02:58.9]} 3. Nf3 {[%clk 0:02:59.9]} 3... Bb7 {[%clk 0:02:59.3]}
4. c4 {[%clk 0:03:00.7]} 4... g6 {[%clk 0:02:58.6]} 5. Nc3 {[%clk 0:03:00.9]}
5... Bg7 {[%clk 0:02:59.1]} 6. Qc2 {[%clk 0:03:01.5]} 6... d5 {[%clk 0:02:35.8]}
7. e3 {[%clk 0:02:41.2]} 7... O-O {[%clk 0:02:21.8]} 8. cxd5 {[%clk 0:02:37.9]}
8... Nxd5 {[%clk 0:02:20.7]} 9. Nxd5 {[%clk 0:02:38.1]} 9... Qxd5 {[%clk
0:02:16.6]} 10. Bd3 {[%clk 0:02:31.2]} 10... Qa5+ {[%clk 0:02:09.4]} 11. Qc3
{[%clk 0:02:28.7]} 11... Qxc3+ {[%clk 0:01:51.3]} 12. bxc3 {[%clk 0:02:29.6]}
12... c5 {[%clk 0:01:51.4]} 13. Ke2 {[%clk 0:02:19.8]} 13... cxd4 {[%clk
0:01:44.1]} 14. cxd4 {[%clk 0:02:19]} 14... Nd7 {[%clk 0:01:44.2]} 15. a4 {[%clk
0:02:17.3]} 15... a6 {[%clk 0:01:20.3]} 16. Rhb1 {[%clk 0:01:39.8]} 16... Rac8
{[%clk 0:01:01.1]} 17. Rb2 {[%clk 0:01:35.6]} 17... Rc3 {[%clk 0:00:40.2]} 18.
Rc2 {[%clk 0:01:02.2]} 18... Rfc8 {[%clk 0:00:36.5]} 19. Kd2 {[%clk 0:00:50.8]}
19... Rxc2+ {[%clk 0:00:36.6]} 20. Bxc2 {[%clk 0:00:51]} 20... Bxf3 {[%clk
0:00:32.8]} 21. gxf3 {[%clk 0:00:51]} 21... e5 {[%clk 0:00:33.5]} 22. dxe5
{[%clk 0:00:44.6]} 22... Nxe5 {[%clk 0:00:33.8]} 23. Bxe5 {[%clk 0:00:44.7]}
23... Bxe5 {[%clk 0:00:34.7]} 24. Rb1 {[%clk 0:00:45.3]} 24... Rb8 {[%clk
0:00:29.7]} 25. f4 {[%clk 0:00:43.8]} 25... Bd6 {[%clk 0:00:29.3]} 26. Bd3
{[%clk 0:00:37.9]} 26... a5 {[%clk 0:00:29]} 27. Rc1 {[%clk 0:00:38.3]} 27...
Bc5 {[%clk 0:00:27.5]} 28. Ke2 {[%clk 0:00:37.6]} 28... Rd8 {[%clk 0:00:27.2]}
29. h4 {[%clk 0:00:33.7]} 29... Kg7 {[%clk 0:00:25.6]} 30. Rg1 {[%clk
0:00:30.1]} 30... Kf6 {[%clk 0:00:24.4]} 31. h5 {[%clk 0:00:28.4]} 31... Bb4
{[%clk 0:00:23.6]} 32. Rc1 {[%clk 0:00:25.9]} 32... Bc5 {[%clk 0:00:23.8]} 33.
h6 {[%clk 0:00:24.2]} 33... Rd7 {[%clk 0:00:20]} 34. Be4 {[%clk 0:00:23.2]}
34... Rd6 {[%clk 0:00:18.7]} 35. Rc4 {[%clk 0:00:17.6]} 35... Rd8 {[%clk
0:00:18.2]} 36. Bc2 {[%clk 0:00:16.5]} 36... Rd7 {[%clk 0:00:17.7]} 37. Re4
{[%clk 0:00:16.2]} 37... Re7 {[%clk 0:00:16.9]} 38. Rc4 {[%clk 0:00:15.3]} 38...
Rc7 {[%clk 0:00:16]} 39. Bd3 {[%clk 0:00:14.5]} 39... Rd7 {[%clk 0:00:14.4]} 40.
Rc1 {[%clk 0:00:12.3]} 40... Ke7 {[%clk 0:00:14.7]} 41. Bc4 {[%clk 0:00:11.7]}
41... Rc7 {[%clk 0:00:09.7]} 42. Rb1 {[%clk 0:00:08.7]} 42... Bb4 {[%clk
0:00:09.2]} 43. Bd3 {[%clk 0:00:08.9]} 43... Rd7 {[%clk 0:00:04]} 44. f5 {[%clk
0:00:09.2]} 44... Kf6 {[%clk 0:00:03.5]} 45. fxg6 {[%clk 0:00:08.9]} 45... fxg6
{[%clk 0:00:04.4]} 46. Rg1 {[%clk 0:00:09.1]} 46... Bf8 {[%clk 0:00:04]} 47. Rb1
{[%clk 0:00:07.5]} 47... Bc5 {[%clk 0:00:03.4]} 48. Be4 {[%clk 0:00:06.1]} 48...
Bb4 {[%clk 0:00:03]} 49. Rg1 {[%clk 0:00:06.3]} 49... Rd2+ {[%clk 0:00:02.7]}
50. Kf3 {[%clk 0:00:06.4]} 50... Bc5 {[%clk 0:00:02.6]} 51. Rc1 {[%clk
0:00:03.3]} 51... Ke5 {[%clk 0:00:02.2]} 52. Bb7 {[%clk 0:00:02.9]} 52... Rd7
{[%clk 0:00:02.3]} 53. Bc6 {[%clk 0:00:02.9]} 53... Rd8 {[%clk 0:00:02.9]} 54.
Bb5 {[%clk 0:00:03.3]} 54... Rf8+ {[%clk 0:00:03.2]} 55. Ke2 {[%clk 0:00:03.4]}
55... Rd8 {[%clk 0:00:03.8]} 56. Rg1 {[%clk 0:00:04]} 56... Bf8 {[%clk
0:00:03.7]} 57. Rh1 {[%clk 0:00:04]} 57... Bb4 {[%clk 0:00:02.6]} 58. Bd3 {[%clk
0:00:04.1]} 58... Rc8 {[%clk 0:00:02.8]} 59. f4+ {[%clk 0:00:03.9]} 59... Kf6
{[%clk 0:00:02.9]} 60. Kf3 {[%clk 0:00:04.5]} 60... Rc3 {[%clk 0:00:02.9]} 61.
Ke4 {[%clk 0:00:04.1]} 61... Bc5 {[%clk 0:00:03]} 62. Rb1 {[%clk 0:00:04.3]}
62... Ra3 {[%clk 0:00:02.7]} 63. Rd1 {[%clk 0:00:03.1]} 63... Rxa4+ {[%clk
0:00:03.1]} 64. Kd5 {[%clk 0:00:03.3]} 64... Bxe3 {[%clk 0:00:02.3]} 65. f5
{[%clk 0:00:02]} 65... gxf5 {[%clk 0:00:02.3]} 66. Bc2 {[%clk 0:00:01.9]} 66...
Rb4 {[%clk 0:00:01.4]} 67. Rf1 {[%clk 0:00:02]} 67... Rd4+ {[%clk 0:00:01.7]}
68. Kc6 {[%clk 0:00:02.4]} 68... Rc4+ {[%clk 0:00:02.4]} 69. Kd5 {[%clk
0:00:01.8]} 69... Rxc2 {[%clk 0:00:03.3]} 70. Re1 {[%clk 0:00:01.5]} 70... Rd2+
{[%clk 0:00:03.8]} 71. Kc4 {[%clk 0:00:02]} 71... Rd4+ {[%clk 0:00:04.3]} 72.
Kc3 {[%clk 0:00:02.2]} 72... f4 {[%clk 0:00:05.2]} 73. Rh1 {[%clk 0:00:01.9]}
73... Rd5 {[%clk 0:00:05.2]} 74. Rh4 {[%clk 0:00:01.4]} 74... f3 {[%clk
0:00:05]} 75. Rh3 {[%clk 0:00:01.6]} 75... Rf5 {[%clk 0:00:05.7]} 76. Rh1 {[%clk
0:00:01.9]} 76... f2 {[%clk 0:00:06.4]} 77. Rf1 {[%clk 0:00:02.6]} 77... Bc5
{[%clk 0:00:07]} 78. Kc4 {[%clk 0:00:03.1]} 78... Ke5 {[%clk 0:00:07.2]} 79. Kb5
{[%clk 0:00:03.4]} 79... Ke4 {[%clk 0:00:07.9]} 80. Ka6 {[%clk 0:00:03.4]} 80...
Ke3 {[%clk 0:00:08.5]} 81. Rd1 {[%clk 0:00:02.7]} 81... Ke2 {[%clk 0:00:08.9]}
82. Rd7 {[%clk 0:00:03.1]} 82... f1=Q {[%clk 0:00:09.5]} 83. Kb7 {[%clk
0:00:03.7]} 83... Qf3+ {[%clk 0:00:09.5]} 84. Ka7 {[%clk 0:00:03.3]} 84... Qc6
{[%clk 0:00:09.2]} 85. Rc7 {[%clk 0:00:02.7]} 85... Qxc7+ {[%clk 0:00:09.2]} 86.
Ka8 {[%clk 0:00:03.3]} 86... Rf8# {[%clk 0:00:08.6]} 0-1

[Event "Late-Titled-Tuesday-Blitz-February-20-2024"]
[Site "Chess.com"]
[Date "2024.02.20"]
[Round "6"]
[White "Muracle"]
[Black "YurasovMat-2012"]
[Result "1/2-1/2"]
[WhiteElo "2478"]
[BlackElo "2604"]
[TimeControl "180+1"]
[EndTime "15:08:13 PST"]
[Termination "Game drawn by repetition"]

1. d4 {[%clk 0:02:59.7]} 1... d5 {[%clk 0:02:59.2]} 2. Nf3 {[%clk 0:03:00]} 2...
Nf6 {[%clk 0:02:57.5]} 3. g3 {[%clk 0:03:00.6]} 3... Bf5 {[%clk 0:02:55.4]} 4.
Bg2 {[%clk 0:03:01.1]} 4... e6 {[%clk 0:02:56.3]} 5. O-O {[%clk 0:03:01.4]} 5...
Nbd7 {[%clk 0:02:57.2]} 6. c4 {[%clk 0:03:01.8]} 6... h6 {[%clk 0:02:57.7]} 7.
Qb3 {[%clk 0:03:02.1]} 7... Qc8 {[%clk 0:02:51.7]} 8. Nc3 {[%clk 0:02:58.6]}
8... c6 {[%clk 0:02:51.9]} 9. Bf4 {[%clk 0:02:55.3]} 9... Be7 {[%clk 0:02:51.2]}
10. Rac1 {[%clk 0:02:54.9]} 10... O-O {[%clk 0:02:50.7]} 11. Ne5 {[%clk
0:02:48.7]} 11... Nxe5 {[%clk 0:02:49.4]} 12. Bxe5 {[%clk 0:02:49.6]} 12... dxc4
{[%clk 0:02:48.4]} 13. Qxc4 {[%clk 0:02:48.9]} 13... Nd5 {[%clk 0:02:48.5]} 14.
e4 {[%clk 0:02:46.7]} 14... Nb6 {[%clk 0:02:39]} 15. Qb3 {[%clk 0:02:44.5]}
15... Bg6 {[%clk 0:02:38.6]} 16. f4 {[%clk 0:02:44.5]} 16... Nd7 {[%clk
0:02:37.2]} 17. f5 {[%clk 0:02:43.9]} 17... exf5 {[%clk 0:02:33.2]} 18. exf5
{[%clk 0:02:44.8]} 18... Nxe5 {[%clk 0:02:32.6]} 19. Nd5 {[%clk 0:02:38.9]}
19... Bg5 {[%clk 0:02:25.3]} 20. dxe5 {[%clk 0:02:23.6]} 20... Bxf5 {[%clk
0:02:25]} 21. h4 {[%clk 0:02:22.4]} 21... Bd8 {[%clk 0:02:19.1]} 22. Nf4 {[%clk
0:02:01.1]} 22... Bb6+ {[%clk 0:02:16.9]} 23. Kh2 {[%clk 0:01:59.5]} 23... Qd7
{[%clk 0:02:13.7]} 24. Rce1 {[%clk 0:01:58.4]} 24... Rfe8 {[%clk 0:02:10.2]} 25.
Qf3 {[%clk 0:01:50.3]} 25... Bc7 {[%clk 0:02:01.8]} 26. Qc3 {[%clk 0:01:15.8]}
26... Rad8 {[%clk 0:01:57.7]} 27. Rf2 {[%clk 0:01:08.1]} 27... Qd4 {[%clk
0:01:54.2]} 28. Qxd4 {[%clk 0:01:04.9]} 28... Rxd4 {[%clk 0:01:53.7]} 29. Ne2
{[%clk 0:01:05.5]} 29... Rd2 {[%clk 0:01:38.5]} 30. Rxf5 {[%clk 0:01:04.6]}
30... Bxe5 {[%clk 0:01:30.4]} 31. Nf4 {[%clk 0:00:30.8]} 31... f6 {[%clk
0:01:25.6]} 32. Kh3 {[%clk 0:00:23.1]} 32... Rxb2 {[%clk 0:01:21.2]} 33. Nd3
{[%clk 0:00:21.1]} 33... Rxa2 {[%clk 0:01:12.7]} 34. Nxe5 {[%clk 0:00:21.4]}
34... fxe5 {[%clk 0:01:13.2]} 35. Rfxe5 {[%clk 0:00:22.3]} 35... Rxe5 {[%clk
0:01:13.5]} 36. Rxe5 {[%clk 0:00:22.8]} 36... Kf7 {[%clk 0:01:12.6]} 37. Bf3
{[%clk 0:00:18.6]} 37... a5 {[%clk 0:01:10.1]} 38. Kg4 {[%clk 0:00:16.6]} 38...
a4 {[%clk 0:01:04.5]} 39. Kf5 {[%clk 0:00:16.3]} 39... g6+ {[%clk 0:00:43.2]}
40. Ke4 {[%clk 0:00:13.9]} 40... a3 {[%clk 0:00:32.9]} 41. Ra5 {[%clk
0:00:13.1]} 41... Ke6 {[%clk 0:00:24.9]} 42. Ra7 {[%clk 0:00:10.5]} 42... b5
{[%clk 0:00:22.8]} 43. Kd4 {[%clk 0:00:11]} 43... Rd2+ {[%clk 0:00:12.2]} 44.
Ke3 {[%clk 0:00:04.9]} 44... Ra2 {[%clk 0:00:04.4]} 45. Bxc6 {[%clk 0:00:05.2]}
45... b4 {[%clk 0:00:04.9]} 46. Ba4 {[%clk 0:00:05]} 46... Rb2 {[%clk
0:00:04.7]} 47. Rb7 {[%clk 0:00:05.4]} 47... a2 {[%clk 0:00:04.7]} 48. Ra7
{[%clk 0:00:05.3]} 48... a1=Q {[%clk 0:00:02.9]} 49. Bd7+ {[%clk 0:00:06]} 49...
Kd6 {[%clk 0:00:02.4]} 50. Rxa1 {[%clk 0:00:06.1]} 50... Kxd7 {[%clk 0:00:02.8]}
51. Ra6 {[%clk 0:00:06.6]} 51... g5 {[%clk 0:00:02.5]} 52. Rxh6 {[%clk
0:00:06.2]} 52... gxh4 {[%clk 0:00:02.1]} 53. gxh4 {[%clk 0:00:06.2]} 53... Kc7
{[%clk 0:00:02]} 54. Rh5 {[%clk 0:00:04.6]} 54... Rh2 {[%clk 0:00:02.2]} 55. Kd3
{[%clk 0:00:04.7]} 55... b3 {[%clk 0:00:01.8]} 56. Kc3 {[%clk 0:00:05.2]} 56...
b2 {[%clk 0:00:02.4]} 57. Rb5 {[%clk 0:00:05.1]} 57... Rxh4 {[%clk 0:00:03]} 58.
Rxb2 {[%clk 0:00:05.2]} 58... Kc6 {[%clk 0:00:03.2]} 59. Rg2 {[%clk 0:00:05.5]}
59... Kc5 {[%clk 0:00:03]} 60. Rg5+ {[%clk 0:00:05.5]} 60... Kd6 {[%clk
0:00:03.2]} 61. Rf5 {[%clk 0:00:05.9]} 61... Rh6 {[%clk 0:00:03.4]} 62. Ra5
{[%clk 0:00:06.3]} 62... Re6 {[%clk 0:00:03.4]} 63. Kd4 {[%clk 0:00:06.7]} 63...
Ke7 {[%clk 0:00:03.6]} 64. Kd5 {[%clk 0:00:06.5]} 64... Rd6+ {[%clk 0:00:03.7]}
65. Ke5 {[%clk 0:00:07]} 65... Re6+ {[%clk 0:00:04]} 66. Kf5 {[%clk 0:00:07.6]}
66... Rf6+ {[%clk 0:00:04.4]} 67. Kg5 {[%clk 0:00:08.2]} 67... Rd6 {[%clk
0:00:04.1]} 68. Ra7+ {[%clk 0:00:08]} 68... Ke6 {[%clk 0:00:04.4]} 69. Rg7
{[%clk 0:00:07.8]} 69... Rd5+ {[%clk 0:00:04.4]} 70. Kf4 {[%clk 0:00:08.4]}
70... Rd4+ {[%clk 0:00:04.7]} 71. Ke3 {[%clk 0:00:08.7]} 71... Ra4 {[%clk
0:00:04.9]} 72. Rh7 {[%clk 0:00:08.9]} 72... Ra3+ {[%clk 0:00:04.9]} 73. Ke4
{[%clk 0:00:09]} 73... Ra4+ {[%clk 0:00:05.3]} 74. Ke3 {[%clk 0:00:09.6]} 74...
Ke5 {[%clk 0:00:05.7]} 75. Rh5+ {[%clk 0:00:10.1]} 75... Kf6 {[%clk 0:00:06.2]}
76. Rh6+ {[%clk 0:00:10.7]} 76... Ke5 {[%clk 0:00:06.5]} 77. Rb6 {[%clk
0:00:11.6]} 77... Ra3+ {[%clk 0:00:06.4]} 78. Kd2 {[%clk 0:00:12.3]} 78... Kd4
{[%clk 0:00:07]} 79. Rb4+ {[%clk 0:00:12.9]} 79... Kc5 {[%clk 0:00:07.2]} 80.
Rh4 {[%clk 0:00:13.5]} 80... Kd5 {[%clk 0:00:07.6]} 81. Ke2 {[%clk 0:00:14]}
81... Ra2+ {[%clk 0:00:07.1]} 82. Kf3 {[%clk 0:00:14.2]} 82... Ra3+ {[%clk
0:00:07.6]} 83. Ke2 {[%clk 0:00:14.8]} 83... Ra2+ {[%clk 0:00:07.9]} 84. Kd3
{[%clk 0:00:15.4]} 84... Ra3+ {[%clk 0:00:08.2]} 85. Kd2 {[%clk 0:00:16]} 85...
Ra2+ {[%clk 0:00:08.5]} 86. Kd3 {[%clk 0:00:16.6]} 86... Ra3+ {[%clk 0:00:09]}
87. Kd2 {[%clk 0:00:17.2]} 87... Ra2+ {[%clk 0:00:09.6]} 88. Kc3 {[%clk
0:00:18]} 88... Ra3+ {[%clk 0:00:09.9]} 89. Kb4 {[%clk 0:00:18.5]} 89... Rf3
{[%clk 0:00:09.8]} 90. Rh5+ {[%clk 0:00:18.9]} 90... Kd4 {[%clk 0:00:09.2]} 91.
Rh4+ {[%clk 0:00:19.4]} 91... Kd5 {[%clk 0:00:08.5]} 92. Rh5+ {[%clk 0:00:19.7]}
92... Kd4 {[%clk 0:00:08.6]} 93. Rh4+ {[%clk 0:00:20.3]} 93... Kd5 {[%clk
0:00:08.8]} 1/2-1/2